bitfinex-derivatives/quotes_ETHF0:USTF0_20260201
["timestamp","ask_amount","ask_price","bid_price","bid_amount"]
[1769907156343,0.20363,2458.0,2457.5,0.00516997]
[1769907156543,3.93289708,2457.9,2457.1,8.02713087]
[1769907156733,3.72926708,2457.9,2457.2,4.15625506]
[1769907156932,3.72926708,2457.9,2457.1,3.87087581]
[1769907157541,3.72926708,2457.9,2457.1,3.87496005]
[1769907157741,3.72926708,2457.9,2457.1,8.0108454]
[1769907158141,3.72926708,2457.9,2457.1,0.00408424]
[1769907158343,4.1121642,2457.6,2457.1,0.00408424]
[1769907159440,3.9085042,2457.5,2457.1,4.24e-06]
[1769907159644,3.9085042,2457.5,2456.6,3.663]
[1769907159645,4.1122042,2457.2,2456.6,3.663]
[1769907160439,4.1122042,2457.2,2456.4,3.64339237]
[1769907160440,0.20371,2457.0,2456.4,3.64339237]
[1769907160644,4.1122142,2457.0,2456.4,0.00455112]
[1769907160840,0.54808548,2457.0,2456.4,0.00455112]
[1769907161541,4.45658968,2457.0,2456.4,0.00455112]
[1769907161742,0.20373,2456.8,2455.9,3.64339237]
[1769907161939,0.20374,2456.7,2455.9,3.64339237]
[1769907162145,0.20375,2456.6,2455.9,3.64339237]
[1769907162345,3.89312157,2456.6,2455.8,2.387]
[1769907162746,3.89312157,2456.6,2455.8,2.3919047]
[1769907164045,3.89312157,2456.6,2455.8,6.29260674]
[1769907164241,0.34437548,2457.0,2455.9,3.90070204]
[1769907164546,0.2037,2457.1,2455.9,3.90070204]
[1769907165550,0.2037,2457.1,2455.9,4.56345204]
[1769907166050,0.32865032,2457.3,2456.1,3.90070204]
[1769907166248,3.68937157,2457.6,2456.1,4.56345204]
[1769907167149,0.2037,2457.1,2456.1,4.56345204]
[1769907167740,10.18,2457.9,2456.1,0.66275]
[1769907167741,0.20374,2456.7,2456.1,0.66275]
[1769907167943,0.20375,2456.5,2455.8,3.90560674]
[1769907171351,3.89312157,2456.5,2455.8,0.0049047]
[1769907173258,3.68937157,2456.0,2454.7,3.90070204]
[1769907173454,3.89320157,2455.6,2454.7,3.90070204]
[1769907173955,3.89321157,2455.5,2454.7,3.90070204]
[1769907174352,3.89615226,2455.5,2454.7,3.9058183]
[1769907175154,0.20385,2455.4,2454.7,3.9058183]
[1769907175650,0.20386,2455.2,2454.7,0.00511626]
[1769907175856,3.89323157,2455.2,2454.7,0.00511626]
[1769907176047,0.00294069,2455.5,2454.7,0.00511626]
[1769907176048,3.89324157,2455.1,2454.7,0.00511626]
[1769907176752,3.89324157,2455.1,2454.4,3.90070204]
[1769907177854,3.89324157,2455.1,2454.4,0.00439236]
[1769907178048,3.89325157,2455.0,2454.4,0.00439236]
[1769907179749,0.00294069,2455.5,2454.4,0.00439236]
[1769907179750,0.20677069,2455.5,2454.4,3.9050944]
[1769907181056,0.20677069,2455.5,2454.5,3.61801124]
[1769907181358,0.20677069,2455.5,2454.6,3.90070204]
[1769907181561,0.20379,2456.0,2454.8,7.51871328]
[1769907181855,0.20379,2456.0,2455.0,3.90070204]
[1769907182059,3.68937157,2455.8,2454.9,7.442]
[1769907182458,3.89320157,2455.6,2454.9,7.442]
[1769907182760,3.89660444,2455.6,2454.9,7.442]
[1769907184962,0.20723287,2455.6,2455.0,3.90070204]
[1769907185163,3.68937157,2456.2,2455.0,3.90070204]
[1769907185364,0.20379,2456.0,2455.0,3.90070204]
[1769907186058,0.20379,2456.0,2455.1,11.89992669]
[1769907186260,0.20906904,2456.0,2455.3,3.90070204]
[1769907186463,0.20906904,2456.0,2455.5,3.90070204]
[1769907187056,3.89313157,2456.5,2455.6,8.2192226]
[1769907187261,0.20377,2456.3,2455.7,4.38265545]
[1769907187462,0.20377,2456.3,2455.6,3.61801124]
[1769907187662,3.93732423,2456.3,2455.7,4.38544579]
[1769907187861,3.93732423,2456.3,2455.6,3.61801124]
[1769907188064,3.9406345,2456.3,2455.7,6.80822428]
[1769907188366,3.73355423,2456.9,2455.9,3.83656715]
[1769907188661,0.20374,2456.7,2455.9,6.25958526]
[1769907188865,0.20374,2456.7,2456.0,4.38707736]
[1769907189059,0.20374,2456.6,2455.9,9.8775965]
[1769907189259,0.20374,2456.6,2456.0,6.81283433]
[1769907189463,0.20735104,2456.6,2456.0,2.42301811]
[1769907189665,3.93730423,2456.5,2456.0,2.42301811]
[1769907191262,3.93730423,2456.5,2456.1,4.46592259]
[1769907191460,3.93730423,2456.5,2456.0,2.42301811]
[1769907191669,3.93730423,2456.5,2456.1,4.46588564]
[1769907191869,3.93730423,2456.5,2456.0,2.42301811]
[1769907192070,3.93730423,2456.5,2456.1,4.46584968]
[1769907192273,3.93730423,2456.5,2456.1,2.42301811]
[1769907193272,3.93730423,2456.5,2456.2,4.5389845]
[1769907193468,3.93730423,2456.5,2456.2,0.0042092]
[1769907194470,0.20375,2456.5,2456.2,0.0042092]
[1769907194667,0.20371,2457.0,2456.4,7.45457839]
[1769907194869,4.06837694,2457.3,2456.8,2.42524998]
[1769907195265,3.73355423,2457.3,2456.8,2.42524998]
[1769907195566,2.9433607,2456.9,2456.8,2.42524998]
[1769907195770,0.20371,2457.0,2456.6,2.42524998]
[1769907196264,0.20371,2457.0,2456.5,2.42524998]
[1769907196665,0.00400597,2457.3,2456.2,3.62222044]
[1769907196869,0.00400597,2457.3,2456.2,0.0042092]
[1769907197773,3.73355423,2457.2,2456.2,0.0042092]
[1769907198174,0.20373,2456.8,2456.2,0.0042092]
[1769907198775,3.73355423,2456.7,2456.2,0.0042092]
[1769907200376,0.20374,2456.6,2456.2,0.0042092]
[1769907201175,0.20374,2456.6,2455.9,7.45457839]
[1769907202074,0.20374,2456.6,2455.9,7.45808637]
[1769907202975,0.20374,2456.6,2456.0,3.83656715]
[1769907203577,3.7375602,2457.3,2456.0,3.83656715]
[1769907204179,0.20371,2457.0,2456.0,3.83656715]
[1769907204675,0.20371,2457.0,2456.3,3.83656715]
[1769907206576,0.20371,2457.0,2456.4,3.83656715]
[1769907206882,0.1995008,2457.0,2456.4,3.83656715]
[1769907207779,0.1995008,2457.0,2456.6,3.83656715]
[1769907213589,0.00400597,2457.3,2456.8,3.83656715]
[1769907214189,0.00400597,2457.3,2457.0,3.83656715]
[1769907214887,0.00400597,2457.3,2456.9,3.61801124]
[1769907215093,0.00400597,2457.3,2456.7,3.83656715]
[1769907215393,3.7375602,2457.3,2456.8,4.34453416]
[1769907215591,3.7375602,2457.3,2456.7,3.61801124]
[1769907215790,3.7375602,2457.3,2456.8,4.34327898]
[1769907216088,0.20369,2457.2,2456.8,3.83656715]
[1769907216683,0.20369,2457.2,2456.9,4.32689637]
[1769907216883,0.20369,2457.2,2456.8,3.83656715]
[1769907217086,0.20369,2457.2,2456.9,4.32672114]
[1769907217293,0.20369,2457.2,2456.8,3.83656715]
[1769907217491,0.20369,2457.2,2456.9,8.31581633]
[1769907217792,0.20369,2457.2,2456.9,3.99075282]
[1769907222394,0.2037,2457.1,2456.7,3.61801124]
[1769907222697,4.00188897,2457.1,2456.8,2.9212289]
[1769907222889,0.2037,2457.1,2456.7,3.61801124]
[1769907223089,0.2037,2457.1,2456.7,7.44541656]
[1769907223398,0.2037,2457.1,2456.8,3.82740532]
[1769907223593,0.20367,2457.5,2456.8,3.82740532]
[1769907223795,3.79818897,2458.0,2457.0,3.82740532]
[1769907224091,3.79818897,2458.0,2457.1,3.82740532]
[1769907224295,0.20361,2458.2,2457.3,3.82740532]
[1769907224490,0.20361,2458.2,2457.4,3.82740532]
[1769907224692,0.20691321,2458.2,2457.4,3.82740532]
[1769907224892,0.20691321,2458.2,2457.5,3.82740532]
[1769907225396,0.20357,2458.7,2457.8,3.82740532]
[1769907225793,0.20357,2458.7,2457.9,3.82740532]
[1769907226390,0.20815001,2458.7,2457.9,3.83138604]
[1769907226695,0.54084421,2458.7,2457.9,3.83138604]
[1769907227694,0.20361,2458.2,2457.7,7.44541656]
[1769907227899,0.20361,2458.2,2457.7,3.82740532]
[1769907228200,4.13546318,2458.7,2457.7,3.82740532]
[1769907228898,4.13546318,2458.7,2457.7,3.83123895]
[1769907229290,0.20361,2458.2,2457.7,3.83123895]
[1769907239608,4.13546318,2458.7,2457.7,3.83123895]
[1769907240803,0.20361,2458.2,2457.7,3.83123895]
[1769907241009,0.20358,2458.6,2457.9,3.82740532]
[1769907241906,0.20359,2458.5,2457.9,3.82740532]
[1769907245016,4.00177897,2458.5,2457.9,3.82740532]
[1769907245215,0.20359,2458.5,2457.9,3.82740532]
[1769907248118,0.20359,2458.5,2458.1,3.79592092]
[1769907248915,4.02506041,2458.1,2457.7,0.00383363]
[1769907249115,0.20362,2458.1,2457.7,0.00383363]
[1769907249420,0.20359,2458.5,2457.9,3.79592092]
[1769907250118,0.20359,2458.5,2458.0,4.17299514]
[1769907250318,0.20359,2458.5,2457.8,3.61801124]
[1769907250319,0.20359,2458.5,2458.1,3.79592092]
[1769907252513,0.00458001,2458.7,2458.1,3.79592092]
[1769907253021,0.20354,2459.0,2458.3,3.79592092]
[1769907253220,0.20354,2459.0,2458.2,4.31189591]
[1769907253221,0.20354,2459.0,2458.5,3.79592092]
[1769907254020,0.20644174,2459.0,2458.5,3.79592092]
[1769907256719,3.82144041,2458.9,2455.9,3.79592092]
[1769907257017,0.20376,2456.4,2456.0,3.23743282]
[1769907257215,0.37043145,2457.0,2455.8,48.79988813]
[1769907257421,0.37043145,2457.0,2455.1,52.87588813]
[1769907257624,2.42593855,2455.7,2455.1,61.40310726]
[1769907257819,6.06484638,2456.9,2455.2,6.29779843]
[1769907258015,0.2037,2457.1,2455.2,42.9098097]
[1769907258219,0.20373,2456.8,2455.4,4.076]
[1769907258416,4.02517041,2456.8,2455.3,16.90660843]
[1769907258616,3.82144041,2456.7,2455.4,48.39055813]
[1769907258826,3.82144041,2456.7,2455.5,7.564]
[1769907258827,0.20375,2456.5,2455.5,7.564]
[1769907259021,0.20375,2456.5,2455.7,1.62751659]
[1769907259322,0.20375,2456.5,2455.2,3.664]
[1769907259323,0.20385,2455.3,2454.5,1.62751659]
[1769907259527,3.82144041,2455.3,2454.0,1.62751659]
[1769907259726,3.82144041,2455.3,2454.1,42.2872497]
[1769907259926,3.82144041,2455.3,2454.1,7.58]
[1769907260126,3.82144041,2455.3,2454.2,42.2872497]
[1769907260327,3.82144041,2455.3,2454.2,42.2923512]
[1769907260528,3.82144041,2455.0,2454.2,42.2923512]
[1769907261326,0.2039,2454.7,2453.4,1.51979533]
[1769907261530,0.32863388,2455.0,2453.7,1.51979533]
[1769907261823,3.82144041,2455.1,2454.1,1.51979533]
[1769907262026,3.82144041,2455.1,2454.2,1.51979533]
[1769907262222,3.82144041,2455.4,2454.5,4.0712]
[1769907262525,0.00486582,2455.1,2454.5,4.0712]
[1769907263026,0.00486582,2455.1,2454.7,4.0712]
[1769907263224,0.20383,2455.6,2454.6,5.57217321]
[1769907263423,4.02527041,2455.6,2454.6,1.50097321]
[1769907263624,4.02527041,2455.6,2454.7,42.2872497]
[1769907263821,4.02527041,2455.6,2454.8,7.597]
[1769907264322,4.02922926,2455.6,2454.9,42.2872497]
[1769907265827,0.20778885,2455.6,2455.0,4.0712]
[1769907266225,0.20778885,2455.6,2455.1,42.2872497]
[1769907266529,0.00395885,2455.6,2455.1,5.56278249]
[1769907266826,0.20778885,2455.6,2455.2,4.0712]
[1769907267028,0.20778885,2455.6,2455.3,4.0712]
[1769907267225,0.20778885,2455.6,2455.2,4.0712]
[1769907267728,0.20778885,2455.6,2455.3,4.0712]
[1769907267928,3.82144041,2456.2,2455.4,4.0712]
[1769907268127,3.82144041,2456.2,2455.4,7.659]
[1769907268330,3.82144041,2456.2,2455.5,46.3584497]
[1769907268529,4.02530041,2455.2,2453.7,1.55214585]
[1769907268731,4.02530041,2455.2,2454.0,7.66]
[1769907268924,4.02530041,2455.2,2454.3,4.0712]
[1769907269124,4.0305651,2455.2,2454.3,4.0712]
[1769907269824,3.82144041,2455.1,2454.3,4.0712]
[1769907270030,3.82144041,2455.1,2454.3,2.389]
[1769907270229,3.82144041,2455.1,2454.3,6.4602]
[1769907270438,3.82144041,2455.1,2454.4,4.0712]
[1769907270628,3.8267051,2455.2,2453.7,1.51017095]
[1769907270826,3.8267051,2455.2,2454.5,5.58137095]
[1769907270827,0.00526469,2455.2,2454.5,5.58137095]
[1769907271326,0.00526469,2455.2,2454.7,4.0712]
[1769907271529,0.00526469,2455.2,2454.7,6.4612]
[1769907271730,0.00526469,2455.2,2454.8,4.0712]
[1769907272329,0.20383,2455.6,2455.0,4.0712]
[1769907272632,0.20383,2455.6,2454.8,1.51017095]
[1769907272930,0.20383,2455.6,2455.2,5.45700074]
[1769907273331,0.20902,2455.6,2455.4,4.0712]
[1769907273527,3.82144041,2456.1,2455.4,3.279]
[1769907273732,0.20379,2456.1,2455.4,3.279]
[1769907274031,0.20379,2456.1,2455.6,4.0712]
[1769907274434,0.20379,2456.1,2455.7,4.0712]
[1769907274734,0.20721028,2456.1,2455.6,4.0712]
[1769907275131,0.20721028,2456.1,2455.4,3.279]
[1769907275132,0.00342028,2456.1,2455.9,4.0712]
[1769907275331,4.02518041,2456.6,2456.0,4.0712]
[1769907275531,4.02518041,2456.6,2455.5,1.3752799]
[1769907275732,4.02518041,2456.6,2455.6,4.0712]
[1769907276234,4.02518041,2456.6,2455.7,4.0712]
[1769907276235,4.02973981,2456.6,2455.7,4.0712]
[1769907276535,0.20375,2456.5,2455.6,5.04601799]
[1769907276734,0.20375,2456.5,2455.7,4.0712]
[1769907276936,0.20375,2456.5,2455.8,4.0712]
[1769907277436,0.20375,2456.5,2455.9,4.0712]
[1769907277637,0.20375,2456.5,2455.8,4.0712]
[1769907278231,0.20375,2456.5,2455.6,5.04601799]
[1769907278438,0.20375,2456.5,2456.1,1.39194819]
[1769907278631,0.20375,2456.5,2456.0,5.46314819]
[1769907278834,0.20375,2456.5,2456.2,4.0712]
[1769907279235,0.20375,2456.5,2456.3,4.0712]
[1769907279532,3.84490933,2458.2,2456.3,1.34098386]
[1769907279734,0.2037,2457.2,2456.3,1.34098386]
[1769907279934,4.04860933,2457.2,2456.3,1.34098386]
[1769907280134,4.04860933,2457.2,2456.4,4.0712]
[1769907280529,4.05194887,2457.2,2456.4,4.0712]
[1769907280735,0.2037,2457.1,2456.4,4.0712]
[1769907280936,4.04860933,2457.1,2456.5,4.0712]
[1769907281137,4.04860933,2457.1,2456.4,4.0712]
[1769907281640,4.04860933,2457.1,2456.5,4.0712]
[1769907281937,4.04860933,2457.1,2456.4,4.0712]
[1769907282338,4.04860933,2457.1,2456.5,4.0712]
[1769907282537,4.04860933,2457.1,2456.6,4.0712]
[1769907282738,4.04860933,2457.1,2456.4,4.0712]
[1769907283143,4.04860933,2457.1,2456.5,4.0712]
[1769907283339,0.2037,2457.1,2456.6,4.0712]
[1769907283539,0.00333954,2457.2,2456.7,4.0712]
[1769907283845,0.00333954,2457.2,2456.6,7.7382]
[1769907284240,3.85191255,2457.2,2456.8,4.0712]
[1769907284636,3.85191255,2457.2,2456.9,4.0712]
[1769907286045,3.84857301,2457.6,2457.1,4.0712]
[1769907286241,0.20364,2457.9,2457.1,1.18895564]
[1769907286449,0.20364,2457.9,2457.3,4.0712]
[1769907286942,0.00320731,2457.9,2457.7,4.0712]
[1769907287141,0.32644693,2458.3,2457.7,4.0712]
[1769907287142,4.17501994,2458.3,2457.7,0.00491701]
[1769907287346,3.84857301,2458.1,2457.1,2.389]
[1769907287542,4.05219301,2458.1,2457.2,6.055]
[1769907287746,4.05219301,2458.1,2457.2,10.1262]
[1769907288048,0.20362,2458.1,2457.6,5.28872614]
[1769907288250,0.00369232,2458.1,2457.8,4.0712]
[1769907288444,3.84857301,2458.4,2457.9,4.0712]
[1769907288648,4.1821698,2458.4,2457.7,4.0712]
[1769907288853,0.20359,2458.5,2458.1,4.0712]
[1769907289351,0.20782285,2458.5,2458.3,4.0712]
[1769907289750,0.20782285,2458.5,2458.4,4.0712]
[1769907289945,0.20782285,2458.5,2458.3,4.0712]
[1769907290346,0.20782285,2458.5,2458.4,4.0712]
[1769907290543,0.20782285,2458.5,2458.3,4.0712]
[1769907290944,0.20782285,2458.5,2458.4,2.68242469]
[1769907291155,0.20782285,2458.5,2458.2,2.68242469]
[1769907291350,0.20782285,2458.5,2458.3,2.68242469]
[1769907291848,0.20361,2458.2,2457.6,0.00470997]
[1769907292249,0.20366,2457.7,2456.8,3.92496744]
[1769907292553,4.05223301,2457.6,2456.7,2.791]
[1769907292751,0.20367,2457.5,2456.8,0.00470997]
[1769907293049,0.20368,2457.4,2456.8,0.00470997]
[1769907293244,0.20368,2457.4,2456.8,0.00795332]
[1769907293445,0.20368,2457.4,2456.8,0.00324335]
[1769907293646,0.20369,2457.3,2456.8,0.00324335]
[1769907293851,4.05226301,2457.3,2456.8,0.00324335]
[1769907294556,0.20369,2457.2,2456.8,0.00324335]
[1769907295054,0.20369,2457.2,2456.5,4.104]
[1769907295256,0.20369,2457.2,2456.6,0.00470997]
[1769907295651,0.20369,2457.2,2456.6,3.97578968]
[1769907296049,3.84857301,2457.6,2456.6,3.97881308]
[1769907296256,0.20365,2457.7,2456.6,3.97881308]
[1769907296455,0.20365,2457.7,2456.7,3.77913344]
[1769907296755,4.05222301,2457.7,2456.7,3.77913344]
[1769907297055,4.05223301,2457.6,2456.8,0.00470997]
[1769907298460,0.20367,2457.5,2456.8,0.00470997]
[1769907299555,0.20367,2457.5,2456.8,3.80796063]
[1769907300058,0.20367,2457.5,2456.8,0.00470997]
[1769907300256,3.84857301,2457.3,2456.6,3.8400234]
[1769907301156,4.05228301,2457.0,2456.6,3.8400234]
[1769907301361,4.05228301,2457.0,2456.6,0.0030234]
[1769907301660,35.93645873,2458.3,2456.6,3.78212031]
[1769907301855,0.20365,2457.7,2456.7,7.80807971]
[1769907302055,0.20362,2458.1,2456.9,3.97107971]
[1769907302257,0.20362,2458.1,2457.1,3.97107971]
[1769907302560,0.00423285,2458.5,2457.1,3.97107971]
[1769907302758,0.00423285,2458.5,2457.2,3.97107971]
[1769907302958,4.79152783,2460.0,2457.4,3.97107971]
[1769907303159,0.20354,2459.0,2457.4,3.97107971]
[1769907303961,0.20860282,2459.0,2457.4,3.97107971]
[1769907304161,0.20860282,2459.0,2457.5,3.97107971]
[1769907307665,3.86351158,2459.0,2457.5,3.97107971]
[1769907307867,4.06201876,2458.7,2457.7,3.64628233]
[1769907308068,3.85844876,2458.7,2457.7,3.665]
[1769907308267,3.85844876,2458.7,2457.7,6.053]
[1769907309165,0.00506282,2459.0,2457.4,3.64628233]
[1769907309166,0.20361,2458.3,2457.4,3.64628233]
[1769907309371,0.20362,2458.2,2457.6,2.791]
[1769907309667,0.20362,2458.2,2457.5,3.981]
[1769907309966,0.20362,2458.2,2457.5,7.62728233]
[1769907311566,0.20362,2458.1,2457.2,3.64628233]
[1769907311771,0.00506282,2459.0,2457.2,3.64628233]
[1769907311772,0.20364,2457.9,2457.3,5.568]
[1769907311968,4.06208876,2457.9,2457.3,5.568]
[1769907312868,4.06208876,2457.9,2457.1,3.64628233]
[1769907313168,3.85844876,2457.9,2457.1,8.92828233]
[1769907314169,0.20366,2457.7,2457.1,8.92828233]
[1769907314470,0.20366,2457.7,2457.1,3.64628233]
[1769907314671,0.20366,2457.6,2457.0,7.59]
[1769907314874,0.20366,2457.6,2456.8,3.64628233]
[1769907315067,0.20367,2457.5,2456.8,3.64628233]
[1769907315267,0.20367,2457.5,2456.9,6.05]
[1769907315967,0.20367,2457.5,2456.8,3.64628233]
[1769907316167,0.20367,2457.5,2456.8,9.77928233]
[1769907317172,0.20367,2457.5,2456.8,3.64628233]
[1769907317377,0.20367,2457.5,2456.8,11.24028233]
[1769907317671,3.85844876,2458.6,2456.9,3.64628233]
[1769907317874,0.20363,2458.0,2457.0,3.64628233]
[1769907318369,0.20363,2457.9,2457.2,3.64628233]
[1769907318568,0.20365,2457.7,2457.2,11.20328233]
[1769907318975,3.85844876,2458.3,2457.3,3.64628233]
[1769907319574,0.20364,2457.9,2457.3,3.64628233]
[1769907321770,3.85844876,2458.6,2457.3,3.64628233]
[1769907321975,0.2036,2458.3,2457.4,3.64628233]
[1769907322475,0.2036,2458.3,2457.5,3.64628233]
[1769907323574,0.2036,2458.3,2457.7,3.64628233]
[1769907323771,0.2036,2458.3,2457.9,3.64628233]
[1769907324875,0.2036,2458.3,2457.9,7.596]
[1769907325075,0.2036,2458.3,2457.8,7.595]
[1769907325271,0.2036,2458.3,2457.8,11.24128233]
[1769907325479,0.2036,2458.3,2457.8,7.595]
[1769907325772,0.2036,2458.3,2457.5,3.64628233]
[1769907325974,0.20363,2458.0,2457.5,7.597]
[1769907326274,0.20363,2457.9,2457.2,6.07474354]
[1769907326478,0.20364,2457.8,2457.2,6.07474354]
[1769907326677,0.20364,2457.8,2457.2,3.64628233]
[1769907326881,0.20364,2457.8,2457.2,11.24428233]
[1769907327081,3.85844876,2457.7,2457.2,7.598]
[1769907327679,3.85844876,2457.7,2457.0,7.6]
[1769907328275,4.06211876,2457.5,2457.0,7.6]
[1769907328482,3.85844876,2457.4,2456.7,7.603]
[1769907329277,0.20368,2457.3,2456.7,7.603]
[1769907332480,3.85844876,2458.0,2456.8,3.64628233]
[1769907332675,3.85844876,2458.6,2456.8,3.64628233]
[1769907332976,0.20363,2458.0,2456.8,6.07474354]
[1769907333181,0.20363,2458.0,2457.0,3.64628233]
[1769907333387,0.20363,2458.0,2457.1,3.64628233]
[1769907334779,0.20364,2457.9,2457.1,3.64628233]
[1769907334981,0.20364,2457.9,2456.9,2.42846121]
[1769907334982,3.85844876,2457.9,2456.9,2.42846121]
[1769907335188,0.20367,2457.5,2456.9,3.64628233]
[1769907335577,0.20368,2457.4,2456.9,3.64628233]
[1769907335783,0.20368,2457.4,2456.6,6.07776694]
[1769907335982,0.20368,2457.4,2456.7,11.26328233]
[1769907336676,0.20368,2457.4,2456.7,3.64628233]
[1769907336881,0.20368,2457.4,2456.7,11.26528233]
[1769907337282,0.20368,2457.4,2456.7,17.46049615]
[1769907338588,0.20368,2457.4,2456.8,3.86301273]
[1769907339587,0.20369,2457.3,2456.8,3.86301273]
[1769907339885,10.18,2458.3,2456.4,2.42846121]
[1769907339886,3.70893033,2457.1,2456.4,2.42846121]
[1769907340082,3.70893033,2457.1,2456.3,2.42846121]
[1769907340285,5.98940978,2458.0,2456.4,3.86301273]
[1769907340286,3.70893033,2457.4,2456.4,3.86301273]
[1769907340490,0.2037,2457.2,2456.4,3.86301273]
[1769907340882,0.20702121,2457.2,2456.4,3.86727045]
[1769907341587,0.2037,2457.1,2456.4,3.86727045]
[1769907343389,3.68762188,2457.2,2456.4,11.50327045]
[1769907344290,0.20372,2456.9,2456.4,11.50327045]
[1769907344691,0.20372,2456.9,2456.4,11.59308618]
[1769907344892,0.20372,2456.9,2456.5,3.95282846]
[1769907345094,0.20373,2456.8,2456.4,7.64025772]
[1769907345990,0.20373,2456.8,2456.4,0.00425772]
[1769907346493,3.68430067,2456.8,2456.2,7.642]
[1769907346792,0.20375,2456.5,2456.2,7.642]
[1769907347095,0.20375,2456.5,2456.2,6.68400972]
[1769907347391,0.20375,2456.5,2456.2,0.00512097]
[1769907347586,0.20372,2456.9,2456.2,3.95794943]
[1769907347786,0.00332121,2457.2,2456.2,3.95794943]
[1769907348695,0.00332121,2457.2,2456.3,3.95282846]
[1769907349491,0.00332121,2457.2,2456.4,3.95282846]
[1769907350298,0.2037,2457.1,2456.4,3.95282846]
[1769907352194,0.20371,2457.0,2456.4,3.95282846]
[1769907352405,0.20372,2456.9,2456.4,3.95282846]
[1769907353798,0.20372,2456.9,2456.2,14.0858]
[1769907354192,0.20372,2456.9,2456.3,6.38128967]
[1769907354396,0.00332121,2457.2,2456.4,3.95282846]
[1769907355202,0.20372,2456.9,2456.4,7.95304628]
[1769907355401,0.20372,2456.9,2456.5,3.95282846]
[1769907355701,0.00332121,2457.2,2456.5,3.95282846]
[1769907356102,0.20372,2456.9,2456.5,3.95282846]
[1769907356302,0.00332121,2457.2,2456.5,3.95282846]
[1769907357194,0.20372,2456.9,2456.5,3.95282846]
[1769907357393,0.00332121,2457.2,2456.5,3.95282846]
[1769907357893,3.68430067,2457.8,2456.7,3.95282846]
[1769907358092,0.20369,2457.3,2456.7,3.95282846]
[1769907358297,0.20369,2457.3,2456.8,3.95282846]
[1769907358498,0.20364,2457.9,2457.0,3.95282846]
[1769907358697,0.20364,2457.8,2457.0,3.95282846]
[1769907359401,0.20364,2457.8,2457.0,6.38128967]
[1769907359602,0.20364,2457.8,2457.1,3.95282846]
[1769907360597,0.00509352,2457.9,2457.1,6.38128967]
[1769907360800,0.20364,2457.8,2457.2,3.95282846]
[1769907361303,10.94697775,2458.9,2457.4,3.95282846]
[1769907361304,0.20358,2458.6,2457.4,3.95282846]
[1769907361497,3.68430067,2458.6,2457.6,3.95282846]
[1769907361805,3.88794067,2457.9,2457.5,3.99067669]
[1769907362001,3.88794067,2457.9,2457.3,11.50928967]
[1769907362200,0.20364,2457.9,2457.3,13.0705563]
[1769907362402,3.68430067,2458.5,2457.4,3.95282846]
[1769907362602,0.20361,2458.2,2457.4,3.95282846]
[1769907362802,0.20361,2458.2,2457.5,3.95282846]
[1769907363508,3.88793067,2458.0,2457.3,10.09846121]
[1769907364509,3.88793067,2458.0,2457.4,6.60794803]
[1769907364510,0.20364,2457.9,2457.4,6.60794803]
[1769907364709,3.88794067,2457.9,2457.3,2.42846121]
[1769907365504,3.88794067,2457.9,2457.2,6.38128967]
[1769907365807,3.88794067,2457.9,2457.3,4.14407394]
[1769907366009,3.88794067,2457.9,2457.2,6.38128967]
[1769907366206,3.88794067,2457.9,2457.3,4.14407373]
[1769907366909,0.20364,2457.9,2457.3,4.14407373]
[1769907367111,0.20364,2457.9,2457.2,6.38128967]
[1769907368413,0.20364,2457.9,2457.2,10.50793842]
[1769907369307,0.20364,2457.8,2457.2,4.12664875]
[1769907369612,0.20364,2457.8,2457.1,17.9721082]
[1769907370106,3.64233551,2457.5,2457.1,2.42846121]
[1769907370309,3.64233551,2457.5,2457.1,4.12584294]
[1769907370510,3.64233551,2457.5,2457.0,2.42846121]
[1769907371112,3.84600551,2457.5,2457.0,2.42846121]
[1769907371412,3.84600551,2457.5,2456.9,6.55298599]
[1769907372115,3.84600551,2457.5,2456.9,2.42846121]
[1769907372313,3.84600551,2457.5,2456.9,6.55298599]
[1769907372514,0.00529121,2458.2,2456.8,6.55298599]
[1769907372515,3.84601551,2457.4,2456.8,6.55298599]
[1769907372715,3.84602551,2457.2,2456.6,6.55337496]
[1769907372916,3.84602551,2457.2,2456.6,4.12491375]
[1769907373612,3.84602551,2457.2,2456.5,13.88203711]
[1769907374009,0.20369,2457.2,2456.6,3.7375759]
[1769907374210,0.20369,2457.2,2456.6,7.86320461]
[1769907374406,0.20369,2457.2,2456.7,3.7375759]
[1769907374604,0.00529121,2458.2,2456.7,3.7375759]
[1769907374807,0.20365,2457.7,2456.9,6.16603711]
[1769907375108,0.20365,2457.7,2457.0,3.7375759]
[1769907375504,0.20365,2457.7,2457.1,3.7375759]
[1769907376414,0.20365,2457.7,2457.1,11.4605759]
[1769907377517,0.20366,2457.6,2457.0,2.42846121]
[1769907377709,0.20367,2457.5,2457.0,2.42846121]
[1769907377907,0.20367,2457.5,2456.8,6.16603711]
[1769907378207,0.20367,2457.5,2456.9,4.16489591]
[1769907378405,0.20367,2457.5,2456.8,6.16603711]
[1769907378608,0.20368,2457.4,2456.8,13.89603711]
[1769907379015,0.20368,2457.4,2456.8,6.16603711]
[1769907382821,0.20368,2457.3,2456.8,6.16603711]
[1769907385120,0.20368,2457.3,2456.9,4.16882649]
[1769907385315,0.20368,2457.3,2456.8,6.16603711]
[1769907385519,0.20368,2457.3,2456.9,4.16882539]
[1769907385820,0.20368,2457.3,2456.8,6.16603711]
[1769907386019,0.20368,2457.3,2456.9,4.16880288]
[1769907386220,0.20368,2457.3,2456.8,6.16603711]
[1769907386515,0.20368,2457.3,2456.9,4.16967481]
[1769907386721,0.20368,2457.3,2456.8,6.16603711]
[1769907386917,0.20368,2457.3,2456.9,4.16967481]
[1769907387122,0.20368,2457.3,2456.9,3.7375759]
[1769907387621,0.20368,2457.3,2457.0,4.32626623]
[1769907387821,0.20368,2457.3,2456.9,2.42846121]
[1769907388020,0.20368,2457.3,2456.8,6.16603711]
[1769907388221,0.20368,2457.3,2456.9,4.32635567]
[1769907388422,0.20368,2457.3,2456.9,3.7375759]
[1769907389728,0.20365,2457.8,2457.1,6.16603711]
[1769907389922,13.82233551,2458.1,2457.1,6.16603711]
[1769907389923,0.20365,2457.7,2457.3,3.7375759]
[1769907392413,0.20365,2457.7,2457.4,3.7375759]
[1769907393020,0.20365,2457.7,2457.3,3.7375759]
[1769907393225,0.20365,2457.7,2457.3,6.16603711]
[1769907394621,0.20365,2457.7,2457.4,4.42295191]
[1769907394822,0.20368,2457.4,2457.3,0.99213246]
[1769907395018,0.20368,2457.4,2457.2,3.614338]
[1769907395019,0.20369,2457.2,2456.6,4.81911733]